bitfinex/quotes_ETHUSD_20240820
["timestamp","ask_amount","ask_price","bid_price","bid_amount"]
[1724125868427,3.5541,2661.8,2661.7,7.38]
[1724125868707,2.2871,2661.8,2661.4,11.13741]
[1724125869063,2.2871,2661.8,2661.5,0.80674884]
[1724125869265,7.31098,2661.8,2661.4,7.38]
[1724125869597,3.5541,2661.8,2661.4,7.38]
[1724125870524,2.2871,2661.8,2661.4,7.38]
[1724125870689,2.2871,2661.8,2661.4,11.13739]
[1724125872003,2.2871,2661.8,2661.5,3.75726]
[1724125872173,3.653,2662.0,2661.5,3.75726]
[1724125872373,7.40958,2662.0,2661.5,3.75726]
[1724125872787,2.386,2662.0,2661.6,3.75712]
[1724125873085,2.386,2662.0,2661.5,3.75726]
[1724125873294,2.386,2662.0,2661.5,7.51445]
[1724125873472,2.386,2662.0,2661.6,3.75709]
[1724125873896,6.11357,2662.4,2661.9,3.75664]
[1724125874110,4.18411486,2663.6,2662.1,1.267]
[1724125874367,5.44757734,2663.8,2662.7,1.267]
[1724125874368,2.2526,2663.5,2662.7,1.267]
[1724125874689,2.2526,2663.5,2663.1,3.755]
[1724125874977,2.2526,2663.5,2662.9,7.27913]
[1724125874978,2.2526,2663.5,2663.2,0.2980023]
[1724125875183,2.3987,2663.8,2663.4,3.75458]
[1724125875378,3.140648,2663.8,2663.4,3.75458]
[1724125875551,3.140648,2663.8,2663.5,0.29776106]
[1724125875890,3.140648,2663.8,2662.9,6.81763915]
[1724125875891,3.75454,2663.5,2662.9,3.75525]
[1724125876497,3.75426,2663.7,2662.7,35.0]
[1724125876778,3.75426,2663.7,2663.1,3.75492]
[1724125877073,4.8191468,2663.7,2663.1,3.75492]
[1724125877447,1.0648868,2663.7,2663.2,3.75487]
[1724125877780,2.3987,2663.8,2663.1,3.75492]
[1724125877781,2.3987,2663.8,2663.3,3.75471]
[1724125877985,2.3987,2663.8,2663.3,4.30471]
[1724125878137,2.3987,2663.8,2663.4,3.75459]
[1724125881063,2.3987,2663.8,2663.2,3.75487]
[1724125881064,6.15284,2663.8,2663.2,3.75487]
[1724125881271,2.3987,2663.8,2662.8,41.10978]
[1724125881484,2.3987,2663.8,2663.4,3.75459]
[1724125882009,2.3987,2663.8,2663.3,0.55]
[1724125882156,2.3987,2663.8,2663.3,4.30469]
[1724125882670,2.3987,2663.8,2663.3,4.30465]
[1724125883459,2.3987,2663.8,2663.3,5.110598]
[1724125883671,3.0,2664.1,2663.5,3.75437]
[1724125883957,3.0,2664.1,2663.6,3.75422]
[1724125884263,3.0,2664.1,2663.5,7.50874]
[1724125884880,6.7537,2664.1,2663.5,3.75437]
[1724125885059,7.675528,2664.1,2663.5,3.75437]
[1724125885805,3.75379,2664.0,2663.5,3.75437]
[1724125886090,3.75379,2664.0,2663.3,7.489378]
[1724125886091,3.0,2663.9,2663.3,8.865328]
[1724125886869,6.75393,2663.9,2663.3,5.110608]
[1724125887067,2.4862,2663.8,2663.3,4.30463]
[1724125888581,6.24029,2663.8,2663.3,4.30463]
[1724125889256,2.4862,2663.8,2663.3,4.30463]
[1724125889862,6.24024,2663.8,2663.3,4.30463]
[1724125890063,6.24024,2663.8,2663.4,0.29705906]
[1724125890576,2.4862,2663.8,2663.4,0.29705906]
[1724125890786,3.785611,2663.8,2663.4,0.29705906]
[1724125890985,3.75426,2663.7,2663.4,0.29705906]
[1724125891187,7.50856,2663.7,2663.4,0.29705906]
[1724125891390,3.75432,2663.6,2663.4,0.29705906]
[1724125891591,3.75432,2663.6,2663.1,3.75495]
[1724125891800,3.75432,2663.6,2663.5,0.29697866]
[1724125892003,3.75425,2663.7,2663.1,7.50989]
[1724125892205,3.75425,2663.7,2663.5,0.29697866]
[1724125892373,3.75425,2663.7,2663.1,3.75494]
[1724125892573,3.75425,2663.7,2663.6,0.29689826]
[1724125892778,3.75425,2663.7,2663.1,7.50988]
[1724125892997,3.75425,2663.7,2663.6,0.29689826]
[1724125893233,5.053694,2663.7,2663.1,3.75494]
[1724125893397,3.75425,2663.7,2663.6,0.29689826]
[1724125893597,3.75425,2663.7,2663.1,7.50988]
[1724125893835,3.75425,2663.7,2663.6,0.29689826]
[1724125894044,5.053694,2663.7,2663.1,3.75494]
[1724125894354,3.75425,2663.7,2663.1,3.75494]
[1724125894540,2.4736,2663.5,2663.2,0.29721989]
[1724125894750,2.4736,2663.5,2663.0,7.38]
[1724125895042,2.4736,2663.2,2663.0,7.38]
[1724125895241,2.4736,2663.2,2662.7,3.7555]
[1724125895539,2.4736,2663.2,2662.7,7.51099]
[1724125895712,2.4736,2663.2,2662.7,3.75549]
[1724125895913,2.4736,2663.2,2662.7,7.51098]
[1724125896099,2.4736,2663.2,2662.7,3.75549]
[1724125896471,2.4736,2663.2,2662.8,0.55]
[1724125898215,3.75505,2663.1,2662.7,0.55]
[1724125898419,2.4736,2663.2,2662.7,0.55]
[1724125898618,6.2285,2663.2,2662.7,4.30558]
[1724125898823,2.4736,2663.2,2662.7,4.30558]
[1724125899816,2.4736,2663.2,2662.7,4.30551]
[1724125901414,3.096434,2663.2,2662.7,4.30555]
[1724125901966,2.4736,2663.2,2662.7,8.0611]
[1724125903771,2.4736,2663.2,2662.8,3.75531]
[1724125905029,2.4736,2663.2,2662.9,0.28778643]
[1724125906032,6.2285,2663.2,2662.9,0.28778643]
[1724125906421,6.2285,2663.2,2662.7,4.30555]
[1724125906621,7.353727,2663.2,2663.0,0.287706]
[1724125906868,7.353727,2663.2,2662.6,7.38]
[1724125906869,3.75515,2663.1,2662.6,7.38]
[1724125907016,3.75516,2663.0,2662.6,7.38]
[1724125907223,1.269,2662.8,2661.9,2.4445]
[1724125907422,2.2687,2662.5,2662.0,4.56252344]
[1724125907729,2.2687,2662.5,2662.1,3.75631]
[1724125907934,2.2687,2662.5,2662.1,7.51265]
[1724125908337,2.2687,2662.5,2662.1,7.51267]
[1724125908520,2.2687,2662.5,2662.2,3.75627]
[1724125909922,3.75553,2662.8,2662.1,3.75631]
[1724125910119,2.4704,2662.9,2662.4,3.756]
[1724125910535,5.4704,2662.9,2662.4,3.756]
[1724125910734,5.4704,2662.9,2662.5,3.75585]
[1724125911069,5.4704,2662.9,2662.4,3.75592]
[1724125911220,5.4704,2662.9,2662.3,3.75601]
[1724125911542,4.41387806,2662.8,2662.3,3.75601]
[1724125912106,0.65843806,2662.8,2662.3,7.51208]
[1724125912272,3.0,2662.8,2662.3,3.75601]
[1724125912681,6.75544,2662.8,2662.3,3.75601]
[1724125915805,6.75544,2662.8,2662.3,7.51209]
[1724125916005,3.0,2662.8,2662.5,3.75584]
[1724125916217,2.4704,2662.9,2662.7,3.75554]
[1724125916500,2.3165,2663.1,2662.7,3.75554]
[1724125916704,2.3165,2663.1,2662.8,3.75544]
[1724125916910,2.3165,2663.1,2662.7,3.75554]
[1724125917506,2.3165,2663.1,2662.8,3.75542]
[1724125918983,2.3165,2663.1,2662.6,7.51127]
[1724125919187,2.3165,2663.1,2662.7,0.55]
[1724125919371,3.599113,2663.1,2662.5,3.75582]
[1724125919609,3.75518,2663.0,2662.6,0.55]
[1724125919803,7.354143,2663.1,2662.6,4.59388285]
[1724125920403,3.599113,2663.1,2662.7,3.75555]
[1724125920602,2.3165,2663.1,2662.7,4.04365239]
[1724125921138,2.3165,2663.1,2662.7,0.28810239]
[1724125921857,3.75433,2663.6,2662.8,0.62510615]
[1724125921858,3.75442,2663.6,2662.8,0.62510615]
[1724125922023,2.4264,2663.4,2663.1,3.75498]
[1724125922423,2.4264,2663.4,2663.2,0.28770021]
[1724125923673,2.4264,2663.4,2663.0,3.75508]
[1724125923833,2.4264,2663.4,2663.3,0.28751739]
[1724125924025,3.044486,2663.4,2662.9,3.7552]
[1724125924222,2.4264,2663.4,2663.3,0.28751739]
[1724125924430,2.4264,2663.4,2662.9,3.7552]
[1724125924624,2.4264,2663.4,2663.3,0.28750569]
[1724125924830,2.4264,2663.4,2662.9,3.7552]
[1724125925030,2.4264,2663.4,2663.3,0.28750569]
[1724125925382,3.419941,2663.4,2662.9,3.7552]
[1724125925586,2.4264,2663.4,2663.0,0.55]
[1724125926061,6.18107,2663.4,2663.1,0.28766653]
[1724125926477,6.18107,2663.4,2662.9,3.7552]
[1724125926674,6.18107,2663.4,2663.2,0.2875861]
[1724125926875,7.174623,2663.4,2662.9,3.7552]
[1724125927117,6.18099,2663.4,2663.3,0.28750569]
[1724125927229,6.18099,2663.4,2662.9,3.7552]
[1724125927429,6.18099,2663.4,2663.0,0.28774696]
[1724125927743,2.4264,2663.4,2663.0,0.28774696]
[1724125928947,2.4264,2663.4,2663.0,4.04289696]
[1724125929356,2.4264,2663.4,2663.1,3.75499]
[1724125929678,2.4264,2663.4,2663.2,0.27825602]
[1724125931237,2.4264,2663.4,2663.0,3.75516]
[1724125931439,2.4264,2663.4,2663.1,0.27833644]
[1724125933254,6.181,2663.4,2663.1,0.27833644]
[1724125933432,0.993546,2663.3,2662.9,3.75517]
[1724125933637,7.449,2663.4,2663.0,0.27841687]
[1724125935508,6.181,2663.4,2663.0,0.27841687]
[1724125935878,3.75474,2663.3,2663.0,0.27841687]
[1724125936312,3.75474,2663.3,2662.8,3.75537]
[1724125936513,3.75474,2663.3,2663.1,0.27833644]
[1724125936711,4.7483,2663.3,2662.9,0.55]
[1724125937393,4.7483,2663.3,2663.0,0.27841687]
[1724125938399,2.2527,2663.2,2662.8,3.75536]
[1724125938918,6.00759,2663.2,2662.9,0.27849731]
[1724125939277,2.2527,2663.2,2662.7,11.13556]
[1724125939479,2.2527,2663.2,2663.0,0.27841687]
[1724125939786,2.2527,2663.2,2662.7,11.13556]
[1724125940019,2.2527,2663.2,2663.1,0.27833644]
[1724125940216,2.2527,2663.2,2662.7,11.13556]
[1724125940424,2.2527,2663.2,2663.1,0.27833644]
[1724125941120,2.2527,2663.2,2662.8,3.75532]
[1724125941324,2.2527,2663.2,2663.1,0.27833644]
[1724125941510,2.2527,2663.2,2662.8,3.75532]
[1724125941708,2.2527,2663.2,2663.1,0.27833644]
[1724125942083,2.2527,2663.2,2662.8,3.75532]
[1724125942286,3.75455,2663.5,2663.1,0.27833644]
[1724125942595,2.461,2663.4,2662.9,4.30519]
[1724125943119,2.461,2663.4,2663.0,0.27841687]
[1724125943824,2.461,2663.4,2663.0,4.03348687]
[1724125958570,2.461,2663.4,2663.0,0.27841687]
[1724125958869,3.584813,2663.4,2663.0,0.27841687]
[1724125959071,3.584813,2663.4,2663.0,4.03356687]
[1724125960152,3.75482,2663.3,2663.0,0.27841687]
[1724125960352,3.75482,2663.3,2662.7,11.13545]
[1724125960574,3.75482,2663.3,2663.1,0.27833068]
[1724125960866,3.75482,2663.3,2662.7,11.54684259]
[1724125961068,3.75482,2663.3,2663.2,0.27825025]
[1724125961266,4.503202,2663.3,2662.9,0.80635064]
[1724125961483,4.503202,2663.3,2662.7,11.13545]
[1724125961772,4.503202,2663.3,2662.8,4.03394198]
[1724125961987,4.503202,2663.3,2662.9,0.80656567]
[1724125962128,4.503202,2663.3,2662.9,0.27849154]
[1724125962665,7.48367,2663.4,2662.9,4.03378154]
[1724125963160,6.21567,2663.4,2663.0,0.80655303]
[1724125963360,6.21567,2663.4,2663.0,0.27841111]
[1724125965543,5.02236,2663.6,2663.1,3.75501]
[1724125965844,7.29436,2663.6,2663.1,7.50994]
[1724125966040,7.29436,2663.6,2663.2,0.27825025]
[1724125966243,2.272,2663.6,2663.2,0.27825025]
[1724125966540,0.921828,2664.1,2663.2,0.27825025]
[1724125966541,5.2901,2664.1,2663.7,3.75417]
[1724125966849,2.2901,2664.1,2663.6,3.75431]
[1724125967174,6.194466,2664.1,2663.7,0.2777991]
[1724125967466,6.194466,2664.1,2663.7,4.0318591]
[1724125967640,5.2901,2664.1,2663.7,4.0318591]
[1724125968490,5.2901,2664.1,2663.7,0.2777991]
[1724125968658,5.2901,2664.1,2663.7,4.0319591]
[1724125971037,5.2901,2664.1,2663.7,0.2777991]
[1724125971236,9.04381,2664.1,2663.7,0.2777991]
[1724125971437,1.406528,2664.0,2663.5,7.50876]
[1724125971763,3.0,2664.0,2663.5,7.50876]
[1724125971950,3.0,2664.0,2663.6,0.27787949]
[1724125972371,6.75376,2664.0,2663.6,0.27787949]
[1724125974819,2.3889,2663.9,2663.6,0.27787949]
[1724125975587,6.14285,2663.9,2663.7,0.2777991]
[1724125975787,7.559311,2663.9,2663.4,3.75456]
[1724125975937,2.3889,2663.9,2663.8,0.27771871]
[1724125976138,2.3889,2663.9,2663.4,3.75456]
[1724125976392,2.3889,2663.9,2663.8,0.27771871]
[1724125977887,11.77559,2664.0,2663.8,0.27771871]
[1724125977888,3.0,2664.0,2663.8,0.27771871]
[1724125978181,3.0,2664.0,2663.5,3.75433]
[1724125978342,3.0,2664.0,2663.9,0.27763833]
[1724125978343,6.75375,2664.0,2663.9,0.27763833]
[1724125978542,6.75375,2664.0,2663.5,3.75433]
[1724125978969,6.75375,2664.0,2663.6,0.27787949]
[1724125983979,6.75375,2664.0,2663.6,4.03216949]
[1724125984183,3.0,2664.0,2663.6,0.27787949]
[1724125984382,5.3955,2664.1,2663.7,3.75414]
[1724125984783,5.3955,2664.1,2663.8,0.27764361]
[1724125985730,9.14917,2664.1,2663.5,7.50866]
[1724125985880,3.75392,2663.9,2663.6,0.27780439]
[1724125986285,3.75375,2664.0,2663.6,0.27780439]
[1724125987124,5.3955,2664.1,2663.6,0.27780439]
[1724125987335,5.3955,2664.1,2663.7,3.7541]
[1724125987512,5.3955,2664.1,2663.8,0.27764361]
[1724125990224,9.14912,2664.1,2663.8,0.27764361]
[1724125990590,5.3955,2664.1,2663.8,0.27764361]
[1724125993209,9.14912,2664.1,2663.8,0.27764361]
[1724125995938,9.14912,2664.1,2663.6,3.7543]
[1724125996251,9.14912,2664.1,2663.7,0.27768933]
[1724125996609,2.3448,2663.8,2663.7,0.27768933]
[1724125997027,2.3448,2663.8,2663.4,3.75458]
[1724125997264,2.3448,2663.8,2663.7,0.27768933]
[1724125997400,2.3448,2663.8,2663.4,3.75458]
[1724125997598,6.09883,2663.8,2663.7,0.27768933]
[1724125997814,2.2701,2663.7,2663.2,3.75486]
[1724125998015,5.02243,2663.6,2663.0,7.51012]
[1724125998215,2.2701,2663.5,2663.3,0.27801094]
[1724125998413,2.2701,2663.5,2663.1,3.75501]
[1724125998944,2.2701,2663.5,2663.2,0.27802203]
[1724126000620,2.2701,2663.5,2663.2,4.03289203]
[1724126005853,6.02455,2663.5,2663.2,0.27802203]
[1724126006279,6.02455,2663.5,2663.0,3.75505]
[1724126006770,6.02455,2663.5,2663.1,0.27822088]
[1724126009682,2.2701,2663.5,2663.1,0.27822088]
[1724126009884,2.2701,2663.5,2663.1,4.03321088]
[1724126010583,2.2701,2663.5,2663.2,3.75486]
[1724126011083,2.2701,2663.5,2663.3,0.27806004]
[1724126011486,2.2701,2663.5,2663.2,3.75486]
[1724126011689,2.2701,2663.5,2663.4,0.27797963]
[1724126011859,2.2701,2663.5,2663.3,0.27806004]
[1724126012055,2.2701,2663.5,2663.4,0.27797963]
[1724126012255,2.2701,2663.5,2663.2,3.75486]
[1724126012456,2.2701,2663.5,2663.4,0.27797963]
[1724126012676,2.2701,2663.5,2663.3,0.27806004]
[1724126012987,2.2701,2663.5,2663.4,0.27797963]
[1724126013391,2.2701,2663.5,2663.0,3.75503]
[1724126013572,2.2701,2663.5,2663.4,0.27797963]
[1724126013784,2.2701,2663.5,2663.0,4.36748524]
[1724126013785,2.2701,2663.5,2663.0,3.75503]
[1724126013995,2.2701,2663.5,2663.4,0.27798253]
[1724126014196,2.2701,2663.5,2663.2,3.75488]
[1724126014395,2.2701,2663.5,2663.4,0.27798253]
[1724126014564,2.2701,2663.5,2663.3,0.27806294]
[1724126014767,2.2701,2663.5,2663.4,0.27798253]
[1724126015297,2.2701,2663.5,2663.2,3.75488]
[1724126015503,2.2701,2663.5,2663.4,0.27798253]
[1724126015672,2.2701,2663.5,2663.3,0.27806294]
[1724126015865,2.2701,2663.5,2663.4,0.27798253]
[1724126016065,2.2701,2663.5,2663.2,3.75488]
[1724126016494,2.2701,2663.5,2663.3,0.27806294]
[1724126016693,2.2701,2663.5,2663.2,3.75488]
[1724126017098,2.2701,2663.5,2663.3,0.27806294]
[1724126017300,2.2701,2663.5,2663.2,3.75488]
[1724126017606,2.2701,2663.5,2663.3,0.27806294]
[1724126017980,2.2701,2663.5,2663.2,3.75488]
[1724126018304,2.2701,2663.5,2663.3,0.27806294]
[1724126018675,2.2701,2663.5,2663.4,0.27798253]
[1724126018896,2.2701,2663.5,2663.2,3.75488]
[1724126019059,2.2701,2663.5,2663.3,0.27806294]
[1724126019488,2.2701,2663.5,2663.2,3.75488]
[1724126019670,2.2701,2663.5,2663.4,0.27798253]
[1724126020286,2.2701,2663.5,2663.2,3.75488]
[1724126020473,2.2701,2663.5,2663.4,0.27798253]
[1724126020674,2.2701,2663.5,2663.3,0.27806294]
[1724126020876,2.2701,2663.5,2663.4,0.27798253]
[1724126021086,2.2701,2663.5,2663.2,3.75488]
[1724126021285,2.2701,2663.5,2663.3,0.27806294]
[1724126021497,2.2701,2663.5,2663.2,3.75488]
[1724126021703,2.2701,2663.5,2663.3,0.27806294]
[1724126021906,2.2701,2663.5,2663.2,3.75488]
[1724126022108,2.2701,2663.5,2663.3,0.27806294]
[1724126022412,2.2701,2663.5,2663.2,3.75488]
[1724126022711,2.2701,2663.5,2663.4,0.27798253]
[1724126022892,2.2701,2663.5,2663.3,4.03273294]
[1724126023094,2.2701,2663.5,2663.4,0.27798253]
[1724126028118,2.455,2663.7,2663.4,4.03257253]
[1724126028329,2.455,2663.7,2663.5,3.75444]
[1724126028611,2.455,2663.7,2663.6,0.27782172]
[1724126029126,5.455,2663.9,2663.6,0.27782172]
[1724126029273,3.75329,2664.4,2663.8,3.75392]
[1724126029274,2.455,2664.1,2663.8,3.75392]
[1724126029475,2.455,2664.1,2663.8,7.50788]
[1724126029788,2.455,2664.1,2663.9,0.27762679]
[1724126031028,2.3505,2664.5,2664.0,3.75373]
[1724126031176,2.3505,2664.5,2664.1,3.7536]
[1724126031375,2.3505,2664.5,2664.1,4.03098227]
[1724126031914,2.3505,2664.5,2664.1,0.27738227]
[1724126031915,6.10356,2664.5,2664.1,0.27738227]
[1724126033233,2.3505,2664.5,2664.1,4.03098227]
[1724126033393,5.3505,2664.5,2664.1,4.03098227]
[1724126033726,3.7524,2665.0,2664.3,3.75325]
[1724126033727,3.7525,2664.9,2664.3,3.75325]
[1724126033875,3.7525,2664.9,2664.6,3.75284]
[1724126033876,2.4692,2664.9,2664.6,3.75284]
[1724126034379,2.4692,2664.9,2664.7,0.2768222]
[1724126035896,2.4692,2664.9,2664.5,3.75291]
[1724126036094,2.4692,2664.9,2664.8,0.27663504]
[1724126036332,2.4692,2664.9,2664.5,7.50588]
[1724126036486,2.4692,2664.9,2664.8,0.27661483]
[1724126036691,2.4692,2664.9,2664.5,7.50588]
[1724126036916,2.4692,2664.9,2664.5,3.75291]
[1724126037118,2.4692,2664.9,2664.6,4.0296226]
[1724126037834,2.4692,2664.9,2664.6,0.2767726]
[1724126039339,3.7372,2664.9,2664.6,0.2767726]
[1724126042504,4.486155,2664.9,2664.6,0.2767726]
[1724126044118,5.769465,2664.9,2664.6,0.2767726]
[1724126044321,2.2928,2664.8,2664.4,3.75316]
[1724126044525,2.2928,2664.8,2664.5,0.27647464]
[1724126044944,6.04545,2664.8,2664.5,0.27647464]
[1724126045160,6.04545,2664.8,2664.3,3.75332]
[1724126045326,6.04545,2664.8,2664.4,0.27655499]
[1724126047230,7.2269335,2664.8,2664.4,0.27655499]
[1724126047426,3.75286,2664.7,2664.4,0.27655499]
[1724126047648,5.02086,2664.7,2664.2,3.75346]
[1724126047821,5.02086,2664.7,2664.5,0.27647464]
[1724126048022,5.02086,2664.7,2664.2,3.75346]
[1724126048358,7.49956,2664.7,2664.2,7.50686]
[1724126048521,3.7467,2664.7,2664.3,0.27663534]
[1724126048855,3.7467,2664.7,2664.2,7.5068]
[1724126049163,3.7467,2664.7,2664.3,0.27663534]
[1724126049464,3.7467,2664.7,2664.2,7.5068]
[1724126049763,3.7467,2664.7,2664.3,0.27663534]
[1724126050102,3.7467,2664.7,2664.2,7.5068]
[1724126050266,3.7467,2664.7,2664.4,0.27655499]
[1724126050425,3.7467,2664.7,2664.3,0.27663534]
[1724126050759,3.7467,2664.7,2664.4,0.27655499]
[1724126050966,3.7467,2664.7,2664.2,3.7534]
[1724126051122,3.7467,2664.7,2664.3,0.27663534]
[1724126051462,3.7467,2664.7,2664.2,7.50679]
[1724126051759,3.7467,2664.7,2664.3,0.27663534]
[1724126051964,3.7467,2664.7,2664.2,7.50679]
[1724126052162,3.7467,2664.7,2664.3,0.27668441]
[1724126052461,3.7467,2664.7,2664.2,7.50674]
[1724126052759,3.7467,2664.7,2664.3,0.27668441]
[1724126052965,3.7467,2664.7,2664.2,7.50675]
[1724126053268,3.7467,2664.7,2664.3,0.27668441]
[1724126053617,3.7467,2664.7,2664.3,3.75333]
[1724126053820,3.7467,2664.7,2664.4,0.27660406]
[1724126054853,3.7467,2664.7,2664.3,3.75332]
[1724126055053,3.7467,2664.7,2664.5,0.27648618]
[1724126055270,3.7467,2664.7,2664.4,0.27656653]
[1724126055481,3.7467,2664.7,2664.6,0.27640584]
[1724126055621,3.7467,2664.7,2664.5,0.27648618]
[1724126055821,3.7467,2664.7,2664.6,0.27640584]
[1724126056136,3.7467,2664.7,2664.2,3.75336]
[1724126056347,3.7467,2664.7,2664.3,0.27664688]
[1724126056540,3.7467,2664.7,2664.2,3.75336]
[1724126056756,3.7467,2664.7,2664.3,0.27664688]
[1724126056927,3.7467,2664.7,2664.2,7.50676]
[1724126057261,3.7467,2664.7,2664.3,0.27664688]
[1724126057563,3.7467,2664.7,2664.3,3.75332]
[1724126057762,3.7467,2664.7,2664.4,0.27656653]
[1724126057937,2.4787,2664.7,2664.4,0.27656653]
[1724126060668,2.4787,2664.7,2664.4,4.02974653]
[1724126061470,2.4787,2664.7,2664.4,7.78286653]
[1724126061666,2.4787,2664.7,2664.4,4.02968653]
[1724126061825,2.4787,2664.7,2664.4,7.78279653]
[1724126062152,2.4787,2664.7,2664.4,4.02967653]
[1724126062528,2.3714,2665.0,2664.4,4.02966653]
[1724126062748,5.3714,2665.0,2664.6,3.75288]
[1724126063084,5.3714,2665.0,2664.7,0.27632551]
[1724126063442,9.12382,2665.0,2664.7,0.27632551]
[1724126063684,2.2907,2664.8,2664.7,0.27632551]
[1724126063897,2.2907,2664.8,2664.4,3.7531]
[1724126064072,2.2907,2664.8,2664.7,0.27632551]
[1724126064393,2.2907,2664.8,2664.7,0.27622161]
[1724126064691,2.2907,2664.8,2664.4,3.7531]
[1724126064842,2.2907,2664.8,2664.7,0.27622161]
[1724126065044,2.2907,2664.8,2664.4,3.7531]
[1724126065244,2.2907,2664.8,2664.7,0.27622161]
[1724126065489,2.2907,2664.8,2664.4,3.7531]
[1724126065706,6.04332,2664.8,2664.7,0.27622161]
[1724126065876,7.449709,2664.8,2664.2,3.75338]
[1724126066046,6.04332,2664.8,2664.7,0.27622161]
[1724126066242,6.04332,2664.8,2664.2,3.75338]
[1724126066467,6.04332,2664.8,2664.7,0.27622161]
[1724126066680,6.04332,2664.8,2664.2,7.50677]
[1724126066877,6.04332,2664.8,2664.7,0.2762447]
[1724126067081,6.04332,2664.8,2664.2,7.50677]
[1724126067289,6.04332,2664.8,2664.7,0.2762447]
[1724126067492,6.04332,2664.8,2664.2,3.75338]
[1724126067667,6.04332,2664.8,2664.7,0.2762447]
[1724126067867,7.449709,2664.8,2664.2,7.50677]
[1724126068075,6.04332,2664.8,2664.7,0.2762447]
[1724126068264,6.04332,2664.8,2664.2,7.50677]
[1724126068466,6.04332,2664.8,2664.7,0.2762447]
[1724126068660,6.04332,2664.8,2664.2,7.50677]
[1724126068865,6.04332,2664.8,2664.7,0.2762447]
[1724126069086,7.449709,2664.8,2664.2,3.75338]
[1724126069286,6.00328,2664.6,2664.1,3.7536]
[1724126069496,2.2503,2664.4,2664.1,3.7536]
[1724126069993,1.268,2664.3,2664.2,0.27664354]
[1724126070146,1.61983,2664.3,2663.8,7.50791]
[1724126070357,1.268,2664.3,2663.9,4.03075042]
[1724126072609,2.2503,2664.4,2664.1,3.75358]
[1724126072768,2.2883,2664.6,2664.1,3.75349]
[1724126072963,2.2883,2664.6,2664.3,3.75325]
[1724126073392,2.2883,2664.6,2664.4,0.2764886]
[1724126075918,2.2883,2664.6,2664.1,7.50706]
[1724126076081,2.2883,2664.6,2664.5,0.27649772]
[1724126076282,2.2883,2664.6,2664.1,7.50706]
[1724126076790,2.2883,2664.6,2664.2,4.03019878]
[1724126080842,6.04121,2664.6,2664.2,0.27673878]
[1724126080978,5.02107,2664.5,2664.2,0.27673878]
[1724126081176,5.02107,2664.5,2664.0,3.75374]
[1724126081177,2.4428,2664.4,2664.0,3.75374]
[1724126081508,2.4428,2664.4,2664.1,0.27681914]
[1724126082829,6.196,2664.4,2664.1,0.27681914]
[1724126083026,9.94928,2664.4,2664.1,0.27681914]
[1724126083224,2.2619,2664.3,2663.9,3.75388]
[1724126083516,6.01523,2664.3,2664.2,0.27673878]
[1724126084012,6.01523,2664.3,2663.8,3.75393]
[1724126084350,7.28323,2664.3,2664.2,0.27673878]
[1724126084563,7.28323,2664.3,2663.8,3.75393]
[1724126085029,7.28323,2664.3,2663.9,0.27706075]
[1724126086224,3.75368,2664.1,2663.9,0.27706075]
[1724126086436,2.3356,2664.0,2663.9,0.27706075]
[1724126086642,2.3356,2664.0,2663.6,3.75423]
[1724126086643,2.3356,2664.0,2663.7,3.75413]
[1724126086849,2.3356,2664.0,2663.9,0.27721665]
[1724126087157,2.3356,2664.0,2663.8,0.27729703]
[1724126087311,2.3356,2664.0,2663.9,0.27721665]
[1724126087713,2.3356,2664.0,2663.7,3.75413]
[1724126087957,2.3356,2664.0,2663.9,0.27721665]
[1724126088176,2.3774,2664.2,2663.9,3.75389]
[1724126088452,2.3774,2664.2,2663.9,4.03110665]
[1724126089847,7.49049,2664.6,2664.1,3.75359]
[1724126090065,3.0,2664.5,2664.1,3.75359]
[1724126090275,3.0,2664.5,2664.2,0.27697843]
[1724126090864,6.75305,2664.5,2664.2,0.27697843]
[1724126091734,6.75305,2664.5,2664.0,3.75375]
[1724126092067,3.0,2664.5,2664.1,3.75361]
[1724126092226,3.0,2664.5,2664.1,4.0306688]
[1724126093663,3.0,2664.5,2664.2,3.75347]
[1724126094074,4.268,2664.6,2664.3,0.27689807]
[1724126094276,7.33193,2664.8,2664.3,4.03015807]
[1724126094585,2.3112,2664.8,2664.5,3.75303]
[1724126094750,2.3112,2664.8,2664.4,3.75318]
[1724126095080,2.3112,2664.8,2664.5,0.27671428]
[1724126095839,2.3112,2664.8,2664.5,4.02974428]
[1724126098866,2.3112,2664.8,2664.5,0.27671428]
[1724126099088,3.5792,2664.8,2664.5,0.27671428]
[1724126099294,7.33182,2664.8,2664.5,0.27671428]
[1724126099475,7.33182,2664.8,2664.3,7.50649]
[1724126099676,7.33182,2664.8,2664.6,0.27663394]
[1724126099974,7.33182,2664.8,2664.3,7.5065]
[1724126099975,8.57329313,2664.8,2664.3,7.5065]
[1724126100176,7.33182,2664.8,2664.7,0.2765536]
[1724126100389,6.25024,2664.7,2664.1,3.75348]
[1724126100594,2.4974,2664.4,2664.2,3.75346]
[1724126105826,2.4974,2664.4,2664.1,3.7536]
[1724126109716,2.4974,2664.4,2664.2,3.75346]
[1724126113345,2.4974,2664.4,2664.0,3.75367]
[1724126113548,3.75396,2663.9,2663.4,6.89485396]
[1724126113691,5.33811,2663.8,2663.2,0.58842717]
[1724126113890,6.07565,2663.7,2663.2,3.75487]
[1724126114425,2.3214,2663.7,2663.3,3.75472]
[1724126114627,2.3214,2663.7,2663.3,4.505681]
[1724126114984,2.3214,2663.7,2663.4,0.27752622]
[1724126116893,6.07558,2663.7,2663.4,0.27752622]
[1724126117091,6.07558,2663.7,2663.2,3.75486]
[1724126117318,6.07558,2663.7,2663.5,0.27744581]
[1724126117592,6.07558,2663.7,2663.2,3.75486]
[1724126117835,2.3214,2663.7,2663.6,0.27736541]